[Event "IV Pullman Rapid 2022"]
[Site "Riga, Latvia"]
[Date "2022.02.19"]
[Round "9.4"]
[White "Pogrebnojs, Dmitrijs"]
[Black "Smorodinskis, Igors"]
[Result "1/2-1/2"]
[TimeControl "600+5"]
[WhiteElo "1896"]
[BlackElo "2121"]

1. e4 {[%clk 00:10:07]} {[%emt 00:00:02]} Nf6 {[%clk 00:10:09]} {[%emt
00:00:02]} 2. e5 {[%clk 00:10:11]} {[%emt 00:00:02]} Nd5 {[%clk 00:10:13]} 3.
c4 {[%clk 00:10:15]} Nb6 {[%clk 00:10:17]} {[%emt 00:00:02]} 4. d4 {[%clk
00:10:18]} d6 {[%clk 00:10:20]} {[%emt 00:00:02]} 5. f4 Bf5 {[%emt 00:00:01]} 6.
Nc3 {[%clk 00:10:25]} {[%emt 00:00:02]} dxe5 {[%clk 00:10:22]} {[%emt
00:00:07]} 7. fxe5 {[%clk 00:10:29]} {[%emt 00:00:01]} e6 {[%clk 00:10:26]}
{[%emt 00:00:01]} 8. Nf3 {[%clk 00:10:13]} {[%emt 00:00:21]} Bb4 {[%clk
00:10:29]} {[%emt 00:00:02]} 9. c5 {[%clk 00:09:34]} {[%emt 00:00:44]} Nd5
{[%clk 00:10:19]} {[%emt 00:00:14]} 10. Qb3 {[%clk 00:09:36]} {[%emt 00:00:03]}
b6 {[%clk 00:08:53]} {[%emt 00:01:31]} 11. cxb6 {[%clk 00:08:05]} {[%emt
00:01:36]} axb6 {[%clk 00:08:53]} {[%emt 00:00:05]} 12. Bd2 {[%clk 00:08:02]}
{[%emt 00:00:08]} O-O {[%clk 00:08:35]} {[%emt 00:00:24]} 13. Bc4 {[%clk
00:07:31]} {[%emt 00:00:36]} Bxc3 {[%clk 00:08:04]} {[%emt 00:00:35]} 14. bxc3
{[%clk 00:07:26]} {[%emt 00:00:11]} Nc6 {[%clk 00:08:04]} {[%emt 00:00:06]} 15.
Bb5 {[%clk 00:05:48]} {[%emt 00:01:43]} Na5 {[%clk 00:08:00]} {[%emt 00:00:09]}
16. Qd1 {[%clk 00:05:51]} {[%emt 00:00:02]} c6 {[%clk 00:07:58]} {[%emt
00:00:07]} 17. Be2 {[%clk 00:05:54]} {[%emt 00:00:02]} b5 {[%clk 00:07:30]}
{[%emt 00:00:34]} 18. O-O {[%clk 00:05:53]} {[%emt 00:00:06]} Nb6 {[%clk
00:07:22]} {[%emt 00:00:13]} 19. Qe1 {[%clk 00:05:37]} {[%emt 00:00:21]} Nac4
{[%clk 00:07:21]} {[%emt 00:00:05]} 20. Bc1 {[%clk 00:05:39]} {[%emt 00:00:04]}
Na3 {[%clk 00:07:02]} {[%emt 00:00:24]} 21. Bxa3 {[%clk 00:05:29]} {[%emt
00:00:15]} Rxa3 {[%clk 00:07:06]} {[%emt 00:00:01]} 22. Qc1 {[%clk 00:05:25]}
{[%emt 00:00:08]} Qa8 {[%clk 00:07:03]} {[%emt 00:00:07]} 23. Qb2 {[%clk
00:05:20]} {[%emt 00:00:10]} Qa4 {[%clk 00:07:04]} {[%emt 00:00:03]} 24. Bd1
{[%clk 00:05:19]} {[%emt 00:00:07]} Nc4 {[%clk 00:06:50]} {[%emt 00:00:20]} 25.
Bxa4 {[%clk 00:05:17]} {[%emt 00:00:06]} Nxb2 {[%clk 00:06:54]} {[%emt
00:00:01]} 26. Bb3 {[%clk 00:05:22]} {[%emt 00:00:01]} Rfa8 {[%clk 00:06:36]}
{[%emt 00:00:22]} 27. Nd2 {[%clk 00:05:22]} {[%emt 00:00:06]} R3a7 {[%clk
00:06:28]} {[%emt 00:00:13]} 28. c4 {[%clk 00:04:43]} {[%emt 00:00:44]} Bd3
{[%clk 00:06:24]} {[%emt 00:00:09]} 29. Rfc1 {[%clk 00:04:46]} {[%emt
00:00:03]} bxc4 {[%clk 00:05:43]} {[%emt 00:00:46]} 30. Nxc4 {[%clk 00:04:46]}
{[%emt 00:00:04]} Nxc4 {[%clk 00:05:44]} {[%emt 00:00:03]} 31. Bxc4 {[%clk
00:04:51]} {[%emt 00:00:01]} Bxc4 {[%clk 00:05:48]} {[%emt 00:00:01]} 32. Rxc4
Rxa2 {[%emt 00:00:05]} 33. Rxa2 {[%emt 00:00:01]} Rxa2 34. Rxc6 {[%clk
00:05:03]} {[%emt 00:00:01]} h5 {[%clk 00:05:46]} {[%emt 00:00:11]} 35. h4
{[%clk 00:04:47]} {[%emt 00:00:25]} Rd2 {[%clk 00:05:51]} {[%emt 00:00:05]} 36.
Rd6 {[%clk 00:04:50]} {[%emt 00:00:03]} Kh7 {[%clk 00:05:55]} 37. Kh2 {[%clk
00:04:49]} {[%emt 00:00:06]} Rd3 {[%clk 00:05:54]} {[%emt 00:00:06]} 38. Kg1
{[%clk 00:04:48]} {[%emt 00:00:06]} Kg6 {[%clk 00:05:55]} {[%emt 00:00:04]} 39.
Rd7 f6 {[%clk 00:05:54]} {[%emt 00:00:05]} 40. Rd6 {[%clk 01:04:42]} {[%emt
00:00:15]} Kf5 {[%clk 00:05:49]} {[%emt 00:00:09]} 41. exf6 {[%emt 00:00:09]}
gxf6 {[%clk 00:05:43]} {[%emt 00:00:12]} 42. Kf2 {[%clk 00:04:09]} {[%emt
00:00:34]} Rd2+ {[%clk 00:05:34]} {[%emt 00:00:14]} 43. Kf3 {[%clk 00:04:11]}
{[%emt 00:00:02]} Ra2 {[%clk 00:05:25]} {[%emt 00:00:14]} 44. Rd8 {[%clk
00:04:00]} {[%emt 00:00:17]} Rd2 {[%clk 00:05:25]} {[%emt 00:00:04]} 45. Rh8
{[%clk 00:03:34]} {[%emt 00:00:31]} Rxd4 {[%clk 00:05:17]} {[%emt 00:00:13]} 46.
Rxh5+ {[%clk 00:03:38]} {[%emt 00:00:01]} Kg6 {[%clk 00:05:21]} {[%emt
00:00:01]} 47. Rh8 {[%clk 00:03:33]} {[%emt 00:00:09]} Kg7 {[%clk 00:05:21]}
{[%emt 00:00:06]} 48. Rh5 {[%clk 00:03:37]} Rd3+ {[%clk 00:04:47]} {[%emt
00:00:39]} 49. Kf2 {[%clk 00:03:10]} {[%emt 00:00:32]} e5 {[%clk 00:04:44]}
{[%emt 00:00:09]} 50. g4 {[%clk 00:03:08]} {[%emt 00:00:06]} Rd4 {[%clk
00:04:24]} {[%emt 00:00:25]} 51. Kf3 {[%clk 00:03:10]} {[%emt 00:00:04]} Ra4
{[%clk 00:04:19]} {[%emt 00:00:10]} 52. Rf5 {[%clk 00:03:10]} {[%emt 00:00:05]}
Ra3+ {[%clk 00:04:17]} {[%emt 00:00:07]} 53. Kf2 {[%clk 00:03:01]} {[%emt
00:00:13]} Ra4 {[%clk 00:04:08]} {[%emt 00:00:14]} 54. g5 {[%clk 00:02:49]}
{[%emt 00:00:17]} fxg5 {[%clk 00:03:53]} {[%emt 00:00:20]} 55. Rxg5+ {[%clk
00:02:51]} {[%emt 00:00:03]} Kf6 {[%clk 00:03:56]} {[%emt 00:00:02]} 56. Rh5
{[%clk 00:02:51]} {[%emt 00:00:06]} Kg6 {[%clk 00:03:52]} {[%emt 00:00:08]} 57.
Rxe5 {[%clk 00:02:47]} {[%emt 00:00:10]} Rxh4 {[%clk 00:03:55]} {[%emt
00:00:02]} 58. Kg3 {[%clk 00:02:47]} {[%emt 00:00:05]} Ra4 {[%clk 00:03:57]}
{[%emt 00:00:02]} 59. Re3 {[%clk 00:02:45]} {[%emt 00:00:08]} Kf5 {[%clk
00:03:57]} {[%emt 00:00:05]} 60. Rf3+ {[%clk 00:02:47]} {[%emt 00:00:03]} Kg5
{[%clk 00:04:00]} {[%emt 00:00:01]} 61. Rc3 {[%clk 00:02:51]} {[%emt 00:00:02]}
Ra5 {[%clk 00:04:03]} {[%emt 00:00:02]} 62. Rb3 {[%clk 00:02:54]} {[%emt
00:00:01]} Rc5 {[%clk 00:04:06]} {[%emt 00:00:01]} 63. Rd3 {[%clk 00:02:58]}
{[%emt 00:00:02]} Rb5 {[%clk 00:04:09]} {[%emt 00:00:02]} 1/2-1/2